fUSD/lending_fUSD_20241023
["ID","MTS","AMOUNT","RATE_DAILY","PERIOD"]
[340696861,1729691474341,-500.0,0.00051269,120]
[340696862,1729691474350,-500.0,0.00051269,120]
[340696863,1729691474360,-500.0,0.00051269,120]
[340696864,1729691474370,-426.44050074,0.00051269,120]
[340696865,1729691474379,-500.0,0.00051269,120]
[340696866,1729691474390,-500.0,0.00051269,120]
[340696867,1729691474400,-500.0,0.00051269,120]
[340696868,1729691474409,-1251.52,0.00051269,120]
[340696869,1729691474419,-500.0,0.00051269,120]
[340696870,1729691474428,-500.0,0.00051269,120]
[340696871,1729691474438,-500.0,0.00051269,120]
[340696872,1729691474447,-1448.29,0.00051269,120]
[340696873,1729691474457,-515.20755634,0.00051269,120]
[340696874,1729691474467,-500.0,0.00051269,120]
[340696875,1729691474476,-500.0,0.00051269,120]
[340696876,1729691474485,-531.48,0.00051269,120]
[340696877,1729691474495,-500.0,0.00051269,120]
[340696878,1729691474505,-512.18,0.00051269,120]
[340696879,1729691474514,-3362.71,0.00051269,120]
[340696880,1729691474523,-500.0,0.00051269,120]
[340696881,1729691474533,-730.54,0.00051269,120]
[340696882,1729691474542,-500.0,0.00051269,120]
[340696883,1729691474552,-500.0,0.00051269,120]
[340696884,1729691474561,-500.0,0.00051269,120]
[340696885,1729691474570,-500.0,0.00051269,120]
[340696886,1729691474580,-500.0,0.00051269,120]
[340696887,1729691474589,-500.0,0.00051269,120]
[340696888,1729691474599,-831.29,0.00051269,120]
[340696889,1729691474608,-500.0,0.00051269,120]
[340696890,1729691474617,-500.0,0.00051269,120]
[340696891,1729691474627,-500.0,0.00051269,120]
[340696892,1729691474636,-591.17,0.00051269,120]
[340696893,1729691474645,-500.0,0.00051269,120]
[340696894,1729691474655,-500.0,0.00051269,120]
[340696895,1729691474665,-500.0,0.00051269,120]
[340696896,1729691474675,-500.0,0.00051269,120]
[340696897,1729691474685,-500.0,0.00051269,120]
[340696898,1729691474695,-500.0,0.00051269,120]
[340696899,1729691474705,-558.36,0.00051269,120]
[340696900,1729691474715,-972.62,0.00051269,120]
[340696901,1729691474724,-500.0,0.00051269,120]
[340696902,1729691474734,-500.0,0.00051269,120]
[340696903,1729691474743,-4500.25,0.00051269,120]
[340696904,1729691474752,-872.5,0.00051269,120]
[340696905,1729691474763,-1016.47,0.00051269,120]
[340696906,1729691474773,-500.0,0.00051269,120]
[340696907,1729691474782,-500.0,0.00051269,120]
[340696908,1729691474791,-2359.59,0.00051269,120]
[340696909,1729691474801,-500.0,0.00051269,120]
[340696910,1729691474810,-2640.22,0.00051269,120]
[340696911,1729691474819,-5436.64,0.00051269,120]
[340696912,1729691474829,-500.0,0.00051269,120]
[340696913,1729691474838,-2910.4,0.00051269,120]
[340696914,1729691474848,-2127.62,0.00051269,120]
[340696915,1729691474857,-500.0,0.00051269,120]
[340696916,1729691474867,-500.0,0.00051269,120]
[340696917,1729691474877,-3750.3,0.00051269,120]
[340696918,1729691474886,-980.37,0.00051269,120]
[340696919,1729691474896,-684.18,0.00051269,120]
[340696920,1729691474905,-500.0,0.00051269,120]
[340696921,1729691474916,-578.36904812,0.00051269,120]
[340696922,1729691474925,-500.0,0.00051269,120]
[340696923,1729691474934,-1581.21,0.00051269,120]
[340696924,1729691474944,-865.01,0.00051269,120]
[340696925,1729691474954,-500.0,0.00051269,120]
[340696926,1729691474963,-500.0,0.00051269,120]
[340696927,1729691474972,-500.0,0.00051269,120]
[340696928,1729691474982,-500.0,0.00051269,120]
[340696929,1729691474991,-1176.97,0.00051269,120]
[340696930,1729691475000,-500.0,0.00051269,120]
[340696931,1729691475011,-581.37,0.00051269,120]
[340696932,1729691475032,-500.0,0.00051269,120]
[340696933,1729691475050,-500.0,0.00051269,120]
[340696934,1729691475067,-500.0,0.00051269,120]
[340696935,1729691475086,-1266.18,0.00051269,120]
[340696936,1729691475104,-500.0,0.00051269,120]
[340696937,1729691475122,-614.39,0.00051269,120]
[340696938,1729691475139,-259.73346127,0.00051269,120]
[340696939,1729691475157,-497.40373629,0.00051269,120]
[340696940,1729691475172,-500.0,0.00051269,120]
[340696941,1729691475188,-3561.46,0.00051269,120]
[340696942,1729691475205,-1083.12,0.00051269,120]
[340696943,1729691475223,-500.0,0.00051269,120]
[340696944,1729691475241,-3814.54,0.00051269,120]
[340696945,1729691475253,-573.02,0.00051269,120]
[340696946,1729691475275,-150.0,0.00051275,7]
[340696947,1729691475290,-150.0,0.00051277,7]
[340696948,1729691475306,-150.0,0.00051292,7]
[340696949,1729691475322,-150.0,0.00051307,7]
[340696950,1729691475337,-150.0,0.00051315,7]
[340696951,1729691475351,-850.0,0.00051357,7]
[340696952,1729691475364,-733.38,0.00051359,120]
[340696953,1729691475378,-500.0,0.00051359,120]
[340696954,1729691475393,-500.0,0.00051359,120]
[340696955,1729691475407,-708.96,0.00051359,120]
[340696956,1729691475421,-517.45888949,0.00051359,120]
[340696957,1729691475435,-500.0,0.00051359,120]
[340696958,1729691475449,-500.0,0.00051359,120]
[340696959,1729691475462,-776.39,0.00051359,120]
[340696960,1729691475475,-1558.2,0.00051359,120]
[340696961,1729691475489,-503.91,0.00051359,120]
[340696962,1729691475503,-500.0,0.00051359,120]
[340696963,1729691475520,-586.63,0.00051359,120]
[340696964,1729691475536,-500.0,0.00051359,120]
[340696965,1729691475550,-500.0,0.00051359,120]
[340696966,1729691475565,-500.0,0.00051359,120]
[340696967,1729691475579,-500.0,0.00051359,120]
[340696968,1729691475596,-500.0,0.00051359,120]
[340696969,1729691475610,-500.0,0.00051359,120]
[340696970,1729691475624,-500.0,0.00051359,120]
[340696971,1729691475639,-272.59118436,0.00051359,120]
[340696972,1729691475653,-500.0,0.00051359,120]
[340696973,1729691475669,-500.0,0.00051359,120]
[340696974,1729691475683,-500.0,0.00051359,120]
[340696975,1729691475697,-500.0,0.00051359,120]
[340696976,1729691475711,-500.0,0.00051359,120]
[340696977,1729691475725,-500.0,0.00051359,120]
[340696978,1729691475739,-500.0,0.00051359,120]
[340696979,1729691475753,-500.0,0.00051359,120]
[340696980,1729691475769,-500.0,0.00051359,120]
[340696981,1729691475782,-500.0,0.00051359,120]
[340696982,1729691475796,-500.0,0.00051359,120]
[340696983,1729691475811,-500.0,0.00051359,120]
[340696984,1729691475824,-657.97,0.00051359,120]
[340696985,1729691475838,-500.0,0.00051359,120]
[340696986,1729691475851,-500.0,0.00051359,120]
[340696987,1729691475864,-2582.81,0.00051359,120]
[340696988,1729691475878,-500.0,0.00051359,120]
[340696989,1729691475893,-500.0,0.00051359,120]
[340696990,1729691475908,-500.0,0.00051359,120]
[340696991,1729691475922,-500.0,0.00051359,120]
[340696992,1729691475935,-500.0,0.00051359,120]
[340696993,1729691475948,-574.76,0.00051359,120]
[340696994,1729691475962,-500.0,0.00051359,120]
[340696995,1729691475975,-500.0,0.00051359,120]
[340696996,1729691475993,-300.0,0.00051359,120]
[340696997,1729691476012,-500.0,0.00051359,120]
[340696998,1729691476026,-500.0,0.00051359,120]
[340696999,1729691476041,-500.0,0.00051359,120]
[340697000,1729691476055,-500.0,0.00051359,120]
[340697001,1729691476070,-500.0,0.00051359,120]
[340697002,1729691476084,-500.0,0.00051359,120]
[340697003,1729691476098,-2258.71,0.00051359,120]
[340697004,1729691476112,-500.0,0.00051359,120]
[340697005,1729691476126,-529.68,0.00051359,120]
[340697006,1729691476139,-500.0,0.00051359,120]
[340697007,1729691476153,-500.0,0.00051359,120]
[340697008,1729691476167,-500.0,0.00051359,120]
[340697009,1729691476181,-500.0,0.00051359,120]
[340697010,1729691476194,-500.0,0.00051359,120]
[340697011,1729691476208,-500.0,0.00051359,90]
[340697012,1729691476222,-1602.66,0.00051359,120]
[340697013,1729691476236,-500.0,0.00051359,120]
[340697014,1729691476248,-500.0,0.00051359,120]
[340697015,1729691476266,-500.0,0.00051359,120]
[340697016,1729691476281,-500.0,0.00051359,120]
[340697017,1729691476294,-500.0,0.00051359,120]
[340697018,1729691476308,-500.0,0.00051359,120]
[340697019,1729691476321,-500.0,0.00051359,120]
[340697020,1729691476335,-511.92,0.00051359,120]
[340697021,1729691476349,-500.0,0.00051359,120]
[340697022,1729691476362,-500.0,0.00051359,120]
[340697023,1729691476375,-910.87,0.00051359,120]
[340697024,1729691476389,-500.0,0.00051359,120]
[340697025,1729691476403,-500.0,0.00051359,120]
[340697026,1729691476417,-2357.8,0.00051359,120]
[340697027,1729691476430,-500.0,0.00051359,120]
[340697028,1729691476444,-980.54,0.00051359,120]
[340697029,1729691476457,-500.0,0.00051359,120]
[340697030,1729691476471,-500.0,0.00051359,120]
[340697031,1729691476484,-500.0,0.00051359,120]
[340697032,1729691476498,-577.99,0.00051359,120]
[340697033,1729691476514,-500.0,0.00051359,120]
[340697034,1729691476527,-1082.92,0.00051359,120]
[340697035,1729691476541,-500.0,0.00051359,120]
[340697036,1729691476554,-500.0,0.00051359,120]
[340697037,1729691476568,-500.0,0.00051359,120]
[340697038,1729691476581,-500.0,0.00051359,120]
[340697039,1729691476595,-500.0,0.00051359,120]
[340697040,1729691476608,-500.0,0.00051359,120]
[340697041,1729691476622,-500.0,0.00051359,120]
[340697042,1729691476636,-500.0,0.00051359,120]
[340697043,1729691476649,-500.0,0.00051359,120]
[340697044,1729691476662,-500.0,0.00051359,120]
[340697045,1729691476676,-500.0,0.00051359,120]
[340697046,1729691476690,-500.0,0.00051359,120]
[340697047,1729691476703,-500.0,0.00051359,120]
[340697048,1729691476716,-732.32,0.00051359,120]
[340697049,1729691476729,-695.49,0.00051359,120]
[340697050,1729691476742,-500.0,0.00051359,120]
[340697051,1729691476755,-500.0,0.00051359,120]
[340697052,1729691476768,-556.77,0.00051359,120]
[340697053,1729691476782,-855.28,0.00051359,120]
[340697054,1729691476795,-226.25738553,0.00051359,120]
[340697055,1729691476804,-500.0,0.00051359,120]
[340697056,1729691476813,-956.59,0.00051359,120]
[340697057,1729691476823,-587.57,0.00051359,120]
[340697058,1729691476833,-500.0,0.00051359,120]
[340697059,1729691476843,-609.38,0.00051359,120]
[340697060,1729691477123,-500.0,0.00051359,120]
[340697061,1729691477146,-500.0,0.00051359,120]
[340697062,1729691477164,-500.0,0.00051359,120]
[340697063,1729691477173,-500.0,0.00051359,120]
[340697064,1729691477183,-523.8,0.00051359,120]
[340697065,1729691477192,-511.89,0.00051359,120]
[340697066,1729691477202,-500.0,0.00051359,120]
[340697067,1729691477211,-500.0,0.00051359,120]
[340697068,1729691477221,-527.61,0.00051359,120]
[340697069,1729691477230,-500.0,0.00051359,120]
[340697070,1729691477240,-500.0,0.00051359,120]
[340697071,1729691477249,-500.0,0.00051359,120]
[340697072,1729691477260,-500.0,0.00051359,120]
[340697073,1729691477271,-375.22242457,0.00051359,120]
[340697074,1729691477279,-500.0,0.00051359,120]
[340697075,1729691477289,-1263.77,0.00051359,120]
[340697076,1729691477298,-441.25429582,0.00051359,120]
[340697077,1729691477308,-500.0,0.00051359,120]
[340697078,1729691477317,-500.0,0.00051359,120]
[340697079,1729691477326,-220.04114154,0.00051359,120]
[340697080,1729691477335,-500.0,0.00051359,120]
[340697081,1729691477345,-500.0,0.00051359,120]
[340697082,1729691477354,-500.0,0.00051359,120]
[340697083,1729691477364,-500.0,0.00051359,120]
[340697084,1729691477373,-500.0,0.00051359,120]
[340697085,1729691477383,-376.80822685,0.00051359,120]
[340697086,1729691477392,-500.0,0.00051359,120]
[340697087,1729691477402,-500.0,0.00051359,120]
[340697088,1729691477411,-5503.91,0.00051359,120]
[340697089,1729691477421,-500.0,0.00051359,120]
[340697090,1729691477431,-500.0,0.00051359,120]
[340697091,1729691477440,-500.0,0.00051359,120]
[340697092,1729691477449,-500.0,0.00051359,120]
[340697093,1729691477459,-500.0,0.00051359,120]
[340697094,1729691477468,-500.0,0.00051359,120]
[340697095,1729691477480,-500.0,0.00051359,120]
[340697096,1729691477489,-827.35,0.00051359,120]
[340697097,1729691477499,-500.0,0.00051359,120]
[340697098,1729691477510,-500.0,0.00051359,120]
[340697099,1729691477519,-500.0,0.00051359,120]
[340697100,1729691477529,-604.33,0.00051359,120]
[340697101,1729691477539,-500.0,0.00051359,120]
[340697102,1729691477549,-500.0,0.00051359,120]
[340697103,1729691477558,-500.0,0.00051359,120]
[340697104,1729691477568,-500.0,0.00051359,120]
[340697105,1729691477577,-500.0,0.00051359,120]
[340697106,1729691477589,-500.0,0.00051359,120]
[340697107,1729691477598,-500.0,0.00051359,120]
[340697108,1729691477608,-500.0,0.00051359,120]
[340697109,1729691477618,-500.0,0.00051359,120]
[340697110,1729691477627,-500.0,0.00051359,120]
[340697111,1729691477638,-500.0,0.00051359,120]
[340697112,1729691477648,-538.75,0.00051359,120]
[340697113,1729691477657,-1134.89,0.00051359,120]
[340697114,1729691477667,-1213.11,0.00051359,120]
[340697115,1729691477676,-512.86,0.00051359,120]
[340697116,1729691477685,-521.83,0.00051359,120]
[340697117,1729691477695,-2147.87,0.00051359,120]
[340697118,1729691477704,-1080.65,0.00051359,120]
[340697119,1729691477714,-265.54552014,0.00051359,120]
[340697120,1729691477723,-500.0,0.00051359,120]
[340697121,1729691477732,-500.0,0.00051359,120]
[340697122,1729691477741,-556.45,0.00051359,120]
[340697123,1729691477751,-500.0,0.00051359,120]
[340697124,1729691477763,-3205.68,0.00051359,120]
[340697125,1729691477772,-500.0,0.00051359,120]
[340697126,1729691477782,-500.0,0.00051359,120]
[340697127,1729691477791,-939.73,0.00051359,120]
[340697128,1729691477801,-541.4,0.00051359,120]
[340697129,1729691477810,-597.57,0.00051359,120]
[340697130,1729691477819,-500.0,0.00051359,120]
[340697131,1729691477828,-2697.86,0.00051359,120]
[340697132,1729691477838,-500.0,0.00051359,120]
[340697133,1729691477847,-507.70681526,0.00051359,120]
[340697134,1729691477856,-500.0,0.00051359,120]
[340697135,1729691477866,-500.0,0.00051359,120]
[340697136,1729691477876,-851.87,0.00051359,120]
[340697137,1729691477885,-500.0,0.00051359,14]
[340697138,1729691477894,-1936.62,0.00051359,120]
[340697139,1729691477904,-500.0,0.00051359,120]
[340697140,1729691477913,-500.0,0.00051359,120]
[340697141,1729691477922,-500.0,0.00051359,120]
[340697142,1729691477931,-1108.74,0.00051359,120]
[340697143,1729691477940,-500.0,0.00051359,120]
[340697144,1729691477950,-662.72,0.00051359,120]
[340697145,1729691477959,-500.0,0.00051359,120]
[340697146,1729691477968,-500.0,0.00051359,120]
[340697147,1729691477977,-500.0,0.00051359,120]
[340697148,1729691477986,-599.35993098,0.00051359,120]
[340697149,1729691477996,-500.0,0.00051359,120]
[340697150,1729691478005,-513.83,0.00051359,120]
[340697151,1729691478018,-500.0,0.00051359,120]
[340697152,1729691478027,-500.0,0.00051359,120]
[340697153,1729691478036,-251.29240384,0.00051359,120]
[340697154,1729691478046,-500.0,0.00051359,120]
[340697155,1729691478055,-831.37,0.00051359,120]
[340697156,1729691478064,-813.6,0.00051359,120]
[340697157,1729691478073,-517.89,0.00051359,120]
[340697158,1729691478083,-500.0,0.00051359,120]
[340697159,1729691478093,-1035.99,0.00051359,120]
[340697160,1729691478102,-592.79,0.00051359,120]
[340697161,1729691478111,-500.0,0.00051359,120]
[340697162,1729691478121,-150.0,0.00051373,7]
[340697163,1729691478131,-150.0,0.00051376,7]
[340697164,1729691478140,-150.0,0.00051381,7]
[340697165,1729691478149,-150.0,0.00051386,7]
[340697166,1729691478159,-1000.0,0.000514,30]
[340697167,1729691478168,-1500.0,0.00051406,14]
[340697168,1729691478177,-150.0,0.00051409,14]
[340697169,1729691478187,-150.0,0.00051409,14]
[340697170,1729691478196,-150.0,0.00051413,7]
[340697171,1729691478206,-1500.0,0.00051424,14]
[340697172,1729691478215,-150.0,0.00051433,7]
[340697173,1729691478224,-500.0,0.00051433,2]
[340697174,1729691478233,-150.0,0.00051435,7]
[340697175,1729691478243,-500.0,0.00051442,120]
[340697176,1729691478252,-500.0,0.00051442,120]
[340697177,1729691478265,-500.0,0.00051442,120]
[340697178,1729691478274,-778.87,0.00051442,120]
[340697179,1729691478283,-500.0,0.00051442,120]
[340697180,1729691478293,-1806.21,0.00051442,120]
[340697181,1729691478302,-500.0,0.00051442,120]
[340697182,1729691478312,-764.74,0.00051442,120]
[340697183,1729691478322,-200.0,0.00051442,120]
[340697184,1729691478331,-804.5,0.00051442,120]
[340697185,1729691478341,-500.0,0.00051442,120]
[340697186,1729691478350,-670.88,0.00051442,120]
[340697187,1729691478360,-1130.12,0.00051442,120]
[340697188,1729691478369,-500.0,0.00051442,120]
[340697189,1729691478379,-500.0,0.00051442,120]
[340697190,1729691478388,-578.29,0.00051442,120]
[340697191,1729691478397,-500.0,0.00051442,120]
[340697192,1729691478407,-500.0,0.00051442,120]
[340697193,1729691478416,-1174.55,0.00051442,120]
[340697194,1729691478426,-500.0,0.00051442,120]
[340697195,1729691478435,-201.26139892,0.00051442,120]
[340697196,1729691478445,-1183.75,0.00051442,120]
[340697197,1729691478455,-898.47,0.00051442,120]
[340697198,1729691478464,-500.0,0.00051442,120]
[340697199,1729691478474,-500.0,0.00051442,120]
[340697200,1729691478483,-500.0,0.00051442,120]
[340697201,1729691478493,-500.0,0.00051442,120]
[340697202,1729691478502,-500.0,0.00051442,120]
[340697203,1729691478514,-546.42,0.00051442,120]
[340697204,1729691478524,-735.75,0.00051442,120]
[340697205,1729691478533,-893.45,0.00051442,120]
[340697206,1729691478542,-500.0,0.00051442,120]
[340697207,1729691478552,-1426.42,0.00051442,120]
[340697208,1729691478561,-500.0,0.00051442,120]
[340697209,1729691478571,-500.0,0.00051442,120]
[340697210,1729691478579,-500.0,0.00051442,120]
[340697211,1729691478589,-500.0,0.00051442,120]
[340697212,1729691478598,-500.0,0.00051442,120]
[340697213,1729691478608,-500.0,0.00051442,120]
[340697214,1729691478617,-500.0,0.00051442,120]
[340697215,1729691478626,-500.0,0.00051442,120]
[340697216,1729691478636,-500.0,0.00051442,120]
[340697217,1729691478645,-500.0,0.00051442,120]
[340697218,1729691478654,-1971.1,0.00051442,120]
[340697219,1729691478664,-629.42,0.00051442,120]
[340697220,1729691478673,-658.24,0.00051442,120]
[340697221,1729691478683,-500.0,0.00051442,120]
[340697222,1729691478692,-500.0,0.00051442,120]
[340697223,1729691478701,-1465.85,0.00051442,120]
[340697224,1729691478711,-500.0,0.00051442,120]
[340697225,1729691478720,-500.0,0.00051442,120]
[340697226,1729691478729,-3529.23,0.00051442,120]
[340697227,1729691478738,-500.0,0.00051442,120]
[340697228,1729691478748,-500.0,0.00051442,120]
[340697229,1729691478758,-3378.78,0.00051442,120]
[340697230,1729691478767,-500.0,0.00051442,120]
[340697231,1729691478777,-820.43,0.00051442,120]
[340697232,1729691478786,-500.0,0.00051442,120]
[340697233,1729691478795,-500.0,0.00051442,120]
[340697234,1729691478805,-169.82106342,0.00051442,120]
[340697235,1729691478815,-3392.88,0.00051442,120]
[340697236,1729691478824,-2064.61,0.00051442,120]
[340697237,1729691478833,-500.0,0.00051442,120]
[340697238,1729691478843,-500.0,0.00051442,120]
[340697239,1729691478852,-1522.52,0.00051442,120]
[340697240,1729691478861,-842.41,0.00051442,120]
[340697241,1729691478870,-500.0,0.00051442,120]
[340697242,1729691478880,-500.0,0.00051442,120]
[340697243,1729691478889,-508.44,0.00051442,120]
[340697244,1729691478898,-1222.32,0.00051442,120]
[340697245,1729691478907,-500.0,0.00051442,120]
[340697246,1729691478916,-500.0,0.00051442,120]
[340697247,1729691478926,-500.0,0.00051442,120]
[340697248,1729691478935,-2025.07,0.00051442,120]
[340697249,1729691478945,-500.0,0.00051442,120]
[340697250,1729691478954,-762.17,0.00051442,120]
[340697251,1729691478963,-500.0,0.00051442,120]
[340697252,1729691478973,-500.0,0.00051442,120]
[340697253,1729691478982,-500.0,0.00051442,120]
[340697254,1729691478992,-500.0,0.00051442,120]
[340697255,1729691479001,-500.0,0.00051442,120]
[340697256,1729691479012,-500.0,0.00051442,120]
[340697257,1729691479022,-534.34,0.00051442,120]
[340697258,1729691479031,-8644.32,0.00051442,120]
[340697259,1729691479040,-983.41,0.00051442,120]
[340697260,1729691479050,-500.0,0.00051442,120]
[340697261,1729691479059,-568.51,0.00051442,120]
[340697262,1729691479068,-500.0,0.00051442,120]
[340697263,1729691479078,-500.0,0.00051442,120]
[340697264,1729691479088,-500.0,0.00051442,120]
[340697265,1729691479098,-500.0,0.00051442,120]
[340697266,1729691479107,-500.0,0.00051442,120]
[340697267,1729691479117,-500.0,0.00051442,120]
[340697268,1729691479126,-500.0,0.00051442,120]
[340697269,1729691479135,-500.0,0.00051442,120]
[340697270,1729691479145,-697.84831496,0.00051474,2]
[340697271,1729691479154,-1500.0,0.0005148,14]
[340697272,1729691479163,-150.0,0.0005148,14]
[340697273,1729691479173,-150.0,0.00051488,7]
[340697274,1729691479182,-222.24627057,0.00051501,44]
[340697275,1729691479191,-500.0,0.00051505,2]
[340697276,1729691479200,-791.35,0.00051505,120]
[340697277,1729691479210,-500.0,0.00051505,120]
[340697278,1729691479219,-500.0,0.00051506,120]
[340697279,1729691479228,-500.0,0.00051506,120]
[340697280,1729691479237,-500.0,0.00051506,120]
[340697281,1729691479247,-500.0,0.00051506,120]
[340697282,1729691479258,-500.0,0.00051506,120]
[340697283,1729691479267,-500.0,0.00051506,120]
[340697284,1729691479276,-500.0,0.00051506,120]
[340697285,1729691479285,-500.0,0.00051506,120]
[340697286,1729691479295,-500.0,0.00051506,120]
[340697287,1729691479304,-500.0,0.00051506,120]
[340697288,1729691479313,-528.71387015,0.00051506,120]
[340697289,1729691479323,-500.0,0.00051506,120]
[340697290,1729691479332,-500.0,0.00051506,120]
[340697291,1729691479341,-500.0,0.00051506,120]
[340697292,1729691479350,-1082.18,0.00051506,120]
[340697293,1729691479359,-587.93,0.00051506,120]
[340697294,1729691479369,-1594.9,0.00051506,120]
[340697295,1729691479378,-500.0,0.00051506,120]
[340697296,1729691479388,-500.0,0.00051506,120]
[340697297,1729691479397,-563.31,0.00051506,120]
[340697298,1729691479407,-848.05,0.00051506,120]
[340697299,1729691479417,-825.73,0.00051506,120]
[340697300,1729691479426,-500.0,0.00051506,120]
[340697301,1729691479436,-500.0,0.00051506,120]
[340697302,1729691479445,-500.0,0.00051506,120]
[340697303,1729691479455,-1538.1,0.00051506,120]
[340697304,1729691479464,-500.0,0.00051506,120]
[340697305,1729691479474,-498.15400948,0.00051506,120]
[340697306,1729691479483,-500.0,0.00051506,120]
[340697307,1729691479493,-1239.7,0.00051506,120]
[340697308,1729691479502,-500.0,0.00051506,120]
[340697309,1729691479513,-500.0,0.00051506,120]
[340697310,1729691479522,-500.0,0.00051506,120]
[340697311,1729691479532,-961.6,0.00051506,120]
[340697312,1729691479541,-2108.84,0.00051506,120]
[340697313,1729691479550,-775.73,0.00051506,120]
[340697314,1729691479560,-500.0,0.00051506,120]
[340697315,1729691479569,-500.0,0.00051506,120]
[340697316,1729691479579,-500.0,0.00051506,120]
[340697317,1729691479591,-500.0,0.00051506,120]
[340697318,1729691479600,-645.43,0.00051506,120]
[340697319,1729691479610,-500.0,0.00051506,120]
[340697320,1729691479621,-500.0,0.00051506,120]
[340697321,1729691479631,-500.0,0.00051506,120]
[340697322,1729691479641,-366.85362263,0.00051506,120]
[340697323,1729691479651,-500.0,0.00051506,120]
[340697324,1729691479660,-500.0,0.00051506,120]
[340697325,1729691479670,-302.1,0.00051507,30]
[340697326,1729691479679,-150.0,0.00051521,7]
[340697327,1729691479688,-150.0,0.00051522,7]
[340697328,1729691479698,-500.0,0.00051542,120]
[340697329,1729691479708,-500.0,0.00051542,120]
[340697330,1729691479718,-500.0,0.00051542,120]
[340697331,1729691479727,-4332.17,0.00051542,120]
[340697332,1729691479737,-3677.17,0.00051542,120]
[340697333,1729691479746,-500.0,0.00051542,120]
[340697334,1729691479756,-1171.42,0.00051542,120]
[340697335,1729691479768,-1003.52,0.00051542,120]
[340697336,1729691479778,-500.0,0.00051542,120]
[340697337,1729691479788,-153.042613,0.00051542,120]
[340697338,1729691479798,-402.470686,0.00051542,120]
[340697339,1729691479808,-500.0,0.00051542,120]
[340697340,1729691479818,-500.0,0.00051542,120]
[340697341,1729691479828,-573.031736,0.00051542,120]
[340697342,1729691479838,-2953.34,0.00051542,120]
[340697343,1729691479847,-620.87505857,0.00051542,120]
[340697344,1729691479858,-21625.53,0.00051542,120]
[340697345,1729691479868,-1350.49,0.00051542,120]
[340697346,1729691479878,-500.0,0.00051542,120]
[340697347,1729691479888,-685.55,0.00051542,120]
[340697348,1729691479898,-1746.68,0.00051542,120]
[340697349,1729691479908,-500.0,0.00051542,120]
[340697350,1729691479918,-7984.63,0.00051542,21]
[340697351,1729691479928,-1000.0,0.00051542,120]
[340697352,1729691479938,-500.0,0.00051542,120]
[340697353,1729691479947,-1489.42,0.00051542,120]
[340697354,1729691479956,-2543.92,0.00051542,120]
[340697355,1729691479966,-2091.74,0.00051542,120]
[340697356,1729691479976,-732.66,0.00051543,120]
[340697357,1729691479986,-500.0,0.00051543,120]
[340697358,1729691479997,-731.05,0.00051543,120]
[340697359,1729691480010,-213.15745248,0.00051543,120]
[340697360,1729691480020,-500.0,0.00051543,120]